[Event "Late-Titled-Tuesday-Blitz-May-14-2024"]
[Site "Chess.com"]
[Date "2024.05.14"]
[Round "9"]
[White "emiliocordova"]
[Black "GothamChess"]
[Result "1-0"]
[WhiteElo "2913"]
[BlackElo "2771"]
[TimeControl "180+1"]
[EndTime "15:43:31 PDT"]
[Termination "emiliocordova won by resignation"]

1. d4 {[%clk 0:02:58]} 1... g6 {[%clk 0:02:59.2]} 2. Nf3 {[%clk 0:02:57.3]} 2...
Bg7 {[%clk 0:02:59.7]} 3. g3 {[%clk 0:02:57.3]} 3... f5 {[%clk 0:02:59.6]} 4.
Bg2 {[%clk 0:02:57.6]} 4... Nf6 {[%clk 0:03:00.4]} 5. O-O {[%clk 0:02:57.9]}
5... O-O {[%clk 0:03:00.4]} 6. c4 {[%clk 0:02:58.6]} 6... d6 {[%clk 0:03:01.1]}
7. Nc3 {[%clk 0:02:59.1]} 7... c6 {[%clk 0:03:01.7]} 8. b3 {[%clk 0:02:59.5]}
8... a5 {[%clk 0:02:58.2]} 9. Bb2 {[%clk 0:02:58.4]} 9... Na6 {[%clk 0:02:58.9]}
10. e3 {[%clk 0:02:56]} 10... Qc7 {[%clk 0:02:54.3]} 11. Rc1 {[%clk 0:02:50.1]}
11... e5 {[%clk 0:02:46.1]} 12. Nb5 {[%clk 0:02:49.3]} 12... cxb5 {[%clk
0:02:32.5]} 13. cxb5 {[%clk 0:02:49.3]} 13... Qb6 {[%clk 0:02:13.4]} 14. dxe5
{[%clk 0:02:47.8]} 14... dxe5 {[%clk 0:02:09.6]} 15. bxa6 {[%clk 0:02:48.1]}
15... e4 {[%clk 0:02:09.2]} 16. axb7 {[%clk 0:02:48.1]} 16... Bxb7 {[%clk
0:02:07.7]} 17. Bd4 {[%clk 0:02:43.9]} 17... Qb5 {[%clk 0:01:58.8]} 18. Nd2
{[%clk 0:02:41.9]} 18... Rac8 {[%clk 0:01:52.3]} 19. Re1 {[%clk 0:02:42.1]}
19... Ng4 {[%clk 0:01:47.1]} 20. Bf1 {[%clk 0:02:40.4]} 20... Qb4 {[%clk
0:01:44]} 21. Rc4 {[%clk 0:02:37.8]} 21... Rxc4 {[%clk 0:01:35.3]} 22. Bxc4+
{[%clk 0:02:36.9]} 22... Kh8 {[%clk 0:01:35.9]} 23. Qa1 {[%clk 0:02:32.1]} 23...
Bf6 {[%clk 0:01:11.1]} 24. Rd1 {[%clk 0:02:26.9]} 24... Kg7 {[%clk 0:00:53.6]}
25. h3 {[%clk 0:02:24.9]} 25... Bxd4 {[%clk 0:00:53.6]} 26. Qxd4+ {[%clk
0:02:23.8]} 26... Nf6 {[%clk 0:00:54.3]} 27. Nf1 {[%clk 0:02:13.8]} 27... a4
{[%clk 0:00:45.2]} 28. g4 {[%clk 0:02:11]} 28... fxg4 {[%clk 0:00:39.3]} 29.
hxg4 {[%clk 0:02:11.9]} 29... h6 {[%clk 0:00:39.9]} 30. Ng3 {[%clk 0:02:11.2]}
30... axb3 {[%clk 0:00:38.4]} 31. axb3 {[%clk 0:02:10.4]} 31... Qe7 {[%clk
0:00:29.9]} 32. Qd6 {[%clk 0:02:08.5]} 32... Re8 {[%clk 0:00:21.4]} 33. Qxe7+
{[%clk 0:02:07.9]} 33... Rxe7 {[%clk 0:00:21.8]} 34. Be2 {[%clk 0:02:07.6]}
34... Bc8 {[%clk 0:00:19.5]} 35. Rd4 {[%clk 0:02:07.4]} 35... Bxg4 {[%clk
0:00:14.6]} 36. Bxg4 {[%clk 0:02:05.7]} 36... Nxg4 {[%clk 0:00:15.5]} 37. Rxe4
{[%clk 0:02:04.7]} 37... Ne5 {[%clk 0:00:13.2]} 38. b4 {[%clk 0:02:00.7]} 38...
Nf3+ {[%clk 0:00:05.7]} 39. Kg2 {[%clk 0:01:57.5]} 39... Rf7 {[%clk 0:00:05.2]}
40. b5 {[%clk 0:01:46.5]} 40... Ne1+ {[%clk 0:00:05.3]} 41. Kf1 {[%clk
0:01:46.5]} 41... Nd3 {[%clk 0:00:06.2]} 42. f4 {[%clk 0:01:31.5]} 42... Rb7
{[%clk 0:00:06.4]} 43. Rd4 {[%clk 0:01:23.4]} 43... Nxf4 {[%clk 0:00:06.3]} 44.
Rxf4 {[%clk 0:01:21.4]} 44... Rxb5 {[%clk 0:00:06.9]} 45. Kf2 {[%clk 0:01:19.7]}
45... h5 {[%clk 0:00:07.2]} 46. Rc4 {[%clk 0:01:16.5]} 46... Rb7 {[%clk
0:00:05.3]} 47. Rc6 {[%clk 0:01:16.2]} 47... Kh6 {[%clk 0:00:04.7]} 48. Ne2
{[%clk 0:01:15.8]} 48... Kg5 {[%clk 0:00:04.6]} 49. Nf4 {[%clk 0:01:15.5]} 49...
Rf7 {[%clk 0:00:01.7]} 50. Rxg6+ {[%clk 0:01:13.4]} 50... Kh4 {[%clk 0:00:02.3]}
51. Rh6 {[%clk 0:01:07.3]} 51... Kg4 {[%clk 0:00:01.8]} 52. Kg2 {[%clk
0:01:04.1]} 52... Rg7 {[%clk 0:00:01.5]} 53. Rxh5 {[%clk 0:00:56]} 53... Rf7
{[%clk 0:00:00.9]} 54. Re5 {[%clk 0:00:52]} 54... Rb7 {[%clk 0:00:01.8]} 55. Kf2
{[%clk 0:00:50.5]} 55... Rb2+ {[%clk 0:00:02.2]} 56. Ne2 {[%clk 0:00:50.5]}
56... Ra2 {[%clk 0:00:02.6]} 57. Re4+ {[%clk 0:00:43.5]} 57... Kh3 {[%clk
0:00:02.6]} 58. Rf4 {[%clk 0:00:41.6]} 58... Ra3 {[%clk 0:00:02.6]} 59. e4
{[%clk 0:00:41.6]} 59... Kh2 {[%clk 0:00:02.2]} 60. Rh4+ {[%clk 0:00:40.8]} 1-0

[Event "Late-Titled-Tuesday-Blitz-May-14-2024"]
[Site "Chess.com"]
[Date "2024.05.14"]
[Round "9"]
[White "Quattroporte300"]
[Black "ImportedItalianMaple"]
[Result "0-1"]
[WhiteElo "2453"]
[BlackElo "2577"]
[TimeControl "180+1"]
[EndTime "15:43:31 PDT"]
[Termination "ImportedItalianMaple won on time"]

1. e4 {[%clk 0:02:55]} 1... g6 {[%clk 0:03:00.3]} 2. d4 {[%clk 0:02:54.7]} 2...
Bg7 {[%clk 0:03:00.8]} 3. Nc3 {[%clk 0:02:55.1]} 3... d5 {[%clk 0:03:01.3]} 4.
exd5 {[%clk 0:02:52.1]} 4... Nf6 {[%clk 0:03:01.9]} 5. Bc4 {[%clk 0:02:52.2]}
5... Nbd7 {[%clk 0:03:02.3]} 6. Qf3 {[%clk 0:02:49.6]} 6... Nb6 {[%clk
0:03:02.5]} 7. Bb3 {[%clk 0:02:50.2]} 7... a5 {[%clk 0:03:03.1]} 8. a4 {[%clk
0:02:49.5]} 8... Bg4 {[%clk 0:03:03.3]} 9. Qg3 {[%clk 0:02:46.4]} 9... Bf5
{[%clk 0:03:03.7]} 10. Qf3 {[%clk 0:02:40.3]} 10... Bg4 {[%clk 0:02:47.8]} 11.
Qg3 {[%clk 0:02:39.3]} 11... h5 {[%clk 0:02:42.8]} 12. h3 {[%clk 0:02:33.4]}
12... Bf5 {[%clk 0:02:42.4]} 13. Qf3 {[%clk 0:02:31.2]} 13... Qd7 {[%clk
0:02:32.2]} 14. Nge2 {[%clk 0:02:30.8]} 14... O-O-O {[%clk 0:02:26.4]} 15. Ng3
{[%clk 0:02:16.5]} 15... Nbxd5 {[%clk 0:02:23.2]} 16. Nxf5 {[%clk 0:02:10.3]}
16... Qxf5 {[%clk 0:02:23.2]} 17. Qxf5+ {[%clk 0:02:06.5]} 17... gxf5 {[%clk
0:02:24.1]} 18. Nxd5 {[%clk 0:02:01.3]} 18... Nxd5 {[%clk 0:02:24]} 19. Bd2
{[%clk 0:01:58.8]} 19... Bxd4 {[%clk 0:02:16.1]} 20. O-O-O {[%clk 0:01:57.4]}
20... Bxf2 {[%clk 0:01:10.9]} 21. Bxa5 {[%clk 0:01:55.4]} 21... e6 {[%clk
0:00:55]} 22. Bxd5 {[%clk 0:01:43.1]} 22... Rxd5 {[%clk 0:00:54.2]} 23. Rxd5
{[%clk 0:01:42.8]} 23... exd5 {[%clk 0:00:54.9]} 24. Rf1 {[%clk 0:01:42.9]}
24... Be3+ {[%clk 0:00:55.4]} 25. Bd2 {[%clk 0:01:42.8]} 25... f4 {[%clk
0:00:46.6]} 26. Kd1 {[%clk 0:01:31]} 26... Rg8 {[%clk 0:00:42]} 27. Bxe3 {[%clk
0:01:10.2]} 27... fxe3 {[%clk 0:00:42.9]} 28. Rxf7 {[%clk 0:01:06.8]} 28... Rxg2
{[%clk 0:00:43.1]} 29. Rf5 {[%clk 0:01:05]} 29... Rd2+ {[%clk 0:00:26.7]} 30.
Kc1 {[%clk 0:00:35.3]} 30... h4 {[%clk 0:00:27.3]} 31. Re5 {[%clk 0:00:16.8]}
31... d4 {[%clk 0:00:27.4]} 32. c3 {[%clk 0:00:17.1]} 32... dxc3 {[%clk
0:00:15.6]} 33. bxc3 {[%clk 0:00:16.7]} 33... Ra2 {[%clk 0:00:16.3]} 34. Rxe3
{[%clk 0:00:14.3]} 34... Rxa4 {[%clk 0:00:16.9]} 35. Kc2 {[%clk 0:00:13.3]}
35... b5 {[%clk 0:00:17.1]} 36. Kd3 {[%clk 0:00:12]} 36... Kb7 {[%clk
0:00:17.3]} 37. Re5 {[%clk 0:00:11.1]} 37... c6 {[%clk 0:00:16.8]} 38. Rh5
{[%clk 0:00:10.2]} 38... Kb6 {[%clk 0:00:17.1]} 39. Rh6 {[%clk 0:00:08.6]} 39...
Rc4 {[%clk 0:00:17.2]} 40. Rh5 {[%clk 0:00:07.3]} 40... Ka5 {[%clk 0:00:17.3]}
41. Rh6 {[%clk 0:00:06.4]} 41... Ka4 {[%clk 0:00:17.9]} 42. Rh5 {[%clk 0:00:06]}
42... Kb3 {[%clk 0:00:18.5]} 43. Rh6 {[%clk 0:00:03.4]} 43... Rxc3+ {[%clk
0:00:18.8]} 44. Kd2 {[%clk 0:00:03.2]} 44... Rc4 {[%clk 0:00:18.6]} 45. Ke3
{[%clk 0:00:02.6]} 45... c5 {[%clk 0:00:18.7]} 46. Kf3 {[%clk 0:00:02.8]} 46...
b4 {[%clk 0:00:19.2]} 0-1

[Event "Late-Titled-Tuesday-Blitz-May-14-2024"]
[Site "Chess.com"]
[Date "2024.05.14"]
[Round "9"]
[White "gamboajp"]
[Black "ChEsper99"]
[Result "0-1"]
[WhiteElo "2026"]
[BlackElo "2241"]
[TimeControl "180+1"]
[EndTime "15:43:31 PDT"]
[Termination "ChEsper99 won on time"]

1. c4 {[%clk 0:02:59.8]} 1... c5 {[%clk 0:02:47.7]} 2. Nf3 {[%clk 0:02:58.8]}
2... g6 {[%clk 0:02:47.3]} 3. d4 {[%clk 0:02:57.7]} 3... cxd4 {[%clk 0:02:46.7]}
4. Nxd4 {[%clk 0:02:57.7]} 4... Bg7 {[%clk 0:02:46.8]} 5. e4 {[%clk 0:02:54.7]}
5... Nc6 {[%clk 0:02:46.4]} 6. Nc2 {[%clk 0:02:54.6]} 6... Nf6 {[%clk
0:02:41.5]} 7. Nc3 {[%clk 0:02:53.9]} 7... O-O {[%clk 0:02:40]} 8. Be2 {[%clk
0:02:54]} 8... d6 {[%clk 0:02:39.9]} 9. O-O {[%clk 0:02:50.9]} 9... Be6 {[%clk
0:02:39.1]} 10. b3 {[%clk 0:02:44.9]} 10... a6 {[%clk 0:02:38.2]} 11. Bd2 {[%clk
0:02:33.2]} 11... Nd7 {[%clk 0:02:08.5]} 12. Rc1 {[%clk 0:02:22.2]} 12... f5
{[%clk 0:02:07.7]} 13. exf5 {[%clk 0:01:58.9]} 13... Bxf5 {[%clk 0:02:06.6]} 14.
Ne3 {[%clk 0:01:54.1]} 14... Be6 {[%clk 0:02:05.1]} 15. Ned5 {[%clk 0:01:47.4]}
15... Bxd5 {[%clk 0:02:04.2]} 16. Nxd5 {[%clk 0:01:40.5]} 16... Nf6 {[%clk
0:02:04.4]} 17. Nf4 {[%clk 0:01:26.3]} 17... Qd7 {[%clk 0:01:59.3]} 18. Bc3
{[%clk 0:01:09.9]} 18... Kh8 {[%clk 0:01:40.1]} 19. Bd3 {[%clk 0:00:40.9]} 19...
e5 {[%clk 0:01:33.1]} 20. Nd5 {[%clk 0:00:31.7]} 20... Nxd5 {[%clk 0:01:33]} 21.
cxd5 {[%clk 0:00:32.1]} 21... Ne7 {[%clk 0:01:33.5]} 22. Be4 {[%clk 0:00:25.2]}
22... Rac8 {[%clk 0:01:33]} 23. Bb4 {[%clk 0:00:20]} 23... Nf5 {[%clk
0:01:29.8]} 24. Rxc8 {[%clk 0:00:18.7]} 24... Rxc8 {[%clk 0:01:29]} 25. Bxf5
{[%clk 0:00:19]} 25... gxf5 {[%clk 0:01:28.1]} 26. Qd2 {[%clk 0:00:18.9]} 26...
Bf8 {[%clk 0:01:17.8]} 27. Rc1 {[%clk 0:00:18.6]} 27... Rc7 {[%clk 0:01:12.6]}
28. Rxc7 {[%clk 0:00:17.7]} 28... Qxc7 {[%clk 0:01:13.5]} 29. h3 {[%clk
0:00:16]} 29... Be7 {[%clk 0:01:05.5]} 30. Qh6 {[%clk 0:00:14.1]} 30... Qd7
{[%clk 0:01:00.7]} 31. Qh5 {[%clk 0:00:10.7]} 31... Kg7 {[%clk 0:00:59.3]} 32.
f4 {[%clk 0:00:08.6]} 32... e4 {[%clk 0:00:58.5]} 33. Bc3+ {[%clk 0:00:08.1]}
33... Kg8 {[%clk 0:00:46.5]} 34. Qh6 {[%clk 0:00:07.5]} 34... Bd8 {[%clk
0:00:41.8]} 35. h4 {[%clk 0:00:04.7]} 35... Qe7 {[%clk 0:00:28.1]} 36. h5 {[%clk
0:00:02.6]} 36... Bb6+ {[%clk 0:00:23.5]} 37. Kf1 {[%clk 0:00:01.2]} 37... Qf8
{[%clk 0:00:21.5]} 38. Qg5+ {[%clk 0:00:01.2]} 38... Kf7 {[%clk 0:00:21.7]} 39.
h6 {[%clk 0:00:00.7]} 39... Ke8 {[%clk 0:00:22.4]} 40. Qh5+ {[%clk 0:00:00.7]}
40... Qf7 {[%clk 0:00:22.6]} 41. Qg5 {[%clk 0:00:00.1]} 41... Bd8 {[%clk
0:00:18.8]} 0-1

[Event "Late-Titled-Tuesday-Blitz-May-14-2024"]
[Site "Chess.com"]
[Date "2024.05.14"]
[Round "9"]
[White "Evan_Attaker"]
[Black "cristianserban1"]
[Result "0-1"]
[WhiteElo "2626"]
[BlackElo "2517"]
[TimeControl "180+1"]
[EndTime "15:43:33 PDT"]
[Termination "cristianserban1 won by checkmate"]

1. Nf3 {[%clk 0:02:00.8]} 1... Nf6 {[%clk 0:02:59]} 2. c4 {[%clk 0:02:00.6]}
2... b6 {[%clk 0:02:59.1]} 3. g3 {[%clk 0:02:00.6]} 3... Bb7 {[%clk 0:02:59.5]}
4. Bg2 {[%clk 0:02:01.3]} 4... g6 {[%clk 0:03:00.2]} 5. O-O {[%clk 0:02:01.9]}
5... Bg7 {[%clk 0:03:00.7]} 6. b3 {[%clk 0:02:01.8]} 6... O-O {[%clk 0:03:00.9]}
7. Bb2 {[%clk 0:02:02.5]} 7... c5 {[%clk 0:02:55.5]} 8. Nc3 {[%clk 0:02:02.9]}
8... e6 {[%clk 0:02:55.1]} 9. d4 {[%clk 0:01:54.6]} 9... cxd4 {[%clk 0:02:54.4]}
10. Qxd4 {[%clk 0:01:53.9]} 10... d5 {[%clk 0:02:50]} 11. Rfd1 {[%clk
0:01:43.1]} 11... Qe7 {[%clk 0:02:22.7]} 12. cxd5 {[%clk 0:01:39.7]} 12... exd5
{[%clk 0:02:10.1]} 13. Rac1 {[%clk 0:01:35.5]} 13... Rd8 {[%clk 0:01:41.9]} 14.
Qh4 {[%clk 0:01:20.3]} 14... Nc6 {[%clk 0:01:25.2]} 15. Nb5 {[%clk 0:01:12]}
15... Rac8 {[%clk 0:00:36.3]} 16. Ba3 {[%clk 0:00:57.5]} 16... Qxe2 {[%clk
0:00:27.2]} 17. Nd6 {[%clk 0:00:56.2]} 17... Ne4 {[%clk 0:00:27.3]} 18. Nxc8
{[%clk 0:00:40]} 18... Qxf2+ {[%clk 0:00:27.1]} 19. Kh1 {[%clk 0:00:40.2]} 19...
Rxc8 {[%clk 0:00:24.9]} 20. Rf1 {[%clk 0:00:32.6]} 20... Qxa2 {[%clk 0:00:24.9]}
21. Be7 {[%clk 0:00:20.5]} 21... Ba6 {[%clk 0:00:23.8]} 22. Rfd1 {[%clk
0:00:16.4]} 22... Nf2+ {[%clk 0:00:23.9]} 23. Kg1 {[%clk 0:00:16.6]} 23... Nxd1
{[%clk 0:00:24.8]} 24. Rxd1 {[%clk 0:00:16.1]} 24... Nxe7 {[%clk 0:00:21.6]} 25.
Qxe7 {[%clk 0:00:17]} 25... Qe2 {[%clk 0:00:21.8]} 26. Qxe2 {[%clk 0:00:16.2]}
26... Bxe2 {[%clk 0:00:22.7]} 27. Rxd5 {[%clk 0:00:16.8]} 27... a5 {[%clk
0:00:18.3]} 28. Rd7 {[%clk 0:00:15.4]} 28... b5 {[%clk 0:00:10.7]} 29. Ra7
{[%clk 0:00:15.1]} 29... Bc3 {[%clk 0:00:09.2]} 30. Kf2 {[%clk 0:00:13.6]} 30...
Bd3 {[%clk 0:00:08.6]} 31. Ke3 {[%clk 0:00:12.6]} 31... Bc2 {[%clk 0:00:08.8]}
32. Rb7 {[%clk 0:00:08.8]} 32... b4 {[%clk 0:00:08.1]} 33. Ra7 {[%clk
0:00:08.9]} 33... Re8+ {[%clk 0:00:05.3]} 34. Kf4 {[%clk 0:00:08.5]} 34... Bxb3
{[%clk 0:00:04.4]} 35. Rxa5 {[%clk 0:00:08.3]} 35... Be6 {[%clk 0:00:03.9]} 36.
Ng5 {[%clk 0:00:08.3]} 36... b3 {[%clk 0:00:03.1]} 37. Nxe6 {[%clk 0:00:08.3]}
37... Bxa5 {[%clk 0:00:02.9]} 38. Nc5 {[%clk 0:00:05.4]} 38... b2 {[%clk
0:00:02.7]} 39. Bc6 {[%clk 0:00:05.2]} 39... Rc8 {[%clk 0:00:02.5]} 40. Be8
{[%clk 0:00:06.1]} 40... Rxc5 {[%clk 0:00:02.7]} 41. Bxf7+ {[%clk 0:00:06.1]}
41... Kxf7 {[%clk 0:00:03]} 42. h4 {[%clk 0:00:06]} 42... b1=Q {[%clk
0:00:03.9]} 43. Kg4 {[%clk 0:00:06.9]} 43... Qf5# {[%clk 0:00:04.4]} 0-1

[Event "Late-Titled-Tuesday-Blitz-May-14-2024"]
[Site "Chess.com"]
[Date "2024.05.14"]
[Round "9"]
[White "vpsetter"]
[Black "GlavkonVVS"]
[Result "1-0"]
[WhiteElo "2560"]
[BlackElo "2622"]
[TimeControl "180+1"]
[EndTime "15:43:38 PDT"]
[Termination "vpsetter won by resignation"]

1. e4 {[%clk 0:02:57.6]} 1... Nf6 {[%clk 0:03:00.4]} 2. e5 {[%clk 0:02:57.7]}
2... Nd5 {[%clk 0:03:00.7]} 3. d4 {[%clk 0:02:58.4]} 3... d6 {[%clk 0:03:00.8]}
4. Nf3 {[%clk 0:02:59.1]} 4... Bg4 {[%clk 0:03:00.1]} 5. Bc4 {[%clk 0:02:54.5]}
5... dxe5 {[%clk 0:02:59.7]} 6. dxe5 {[%clk 0:02:48.5]} 6... e6 {[%clk
0:02:59.8]} 7. h3 {[%clk 0:02:42.6]} 7... Bh5 {[%clk 0:02:57.9]} 8. g4 {[%clk
0:02:41.9]} 8... Bg6 {[%clk 0:02:57.5]} 9. Bg5 {[%clk 0:02:29]} 9... Qd7 {[%clk
0:02:56.9]} 10. Nbd2 {[%clk 0:02:17.2]} 10... h5 {[%clk 0:02:44.2]} 11. Nh4
{[%clk 0:02:13]} 11... Bh7 {[%clk 0:02:40.2]} 12. gxh5 {[%clk 0:02:13.2]} 12...
Nc6 {[%clk 0:02:38.6]} 13. Ndf3 {[%clk 0:01:46.3]} 13... Ndb4 {[%clk 0:02:24.4]}
14. Qxd7+ {[%clk 0:01:41.2]} 14... Kxd7 {[%clk 0:02:24.3]} 15. O-O-O+ {[%clk
0:01:41.3]} 15... Ke8 {[%clk 0:02:24.5]} 16. c3 {[%clk 0:01:35.4]} 16... Nd5
{[%clk 0:02:24.1]} 17. Bxd5 {[%clk 0:00:59.7]} 17... exd5 {[%clk 0:02:24]} 18.
Rxd5 {[%clk 0:00:59.6]} 18... Be4 {[%clk 0:02:24]} 19. Rd2 {[%clk 0:00:55.9]}
19... Rxh5 {[%clk 0:02:23]} 20. Re1 {[%clk 0:00:48.5]} 20... Bxf3 {[%clk
0:02:15.7]} 21. Nxf3 {[%clk 0:00:48.4]} 21... Rxh3 {[%clk 0:02:15.5]} 22. Nd4
{[%clk 0:00:33.8]} 22... Nxd4 {[%clk 0:02:14.6]} 23. Rxd4 {[%clk 0:00:33.9]}
23... Bc5 {[%clk 0:02:10.9]} 24. Rf4 {[%clk 0:00:18.6]} 24... Rh5 {[%clk
0:02:03.3]} 25. Rg1 {[%clk 0:00:16.4]} 25... Kf8 {[%clk 0:01:43.8]} 26. Rf5
{[%clk 0:00:14.1]} 26... Kg8 {[%clk 0:01:37.1]} 27. Rf3 {[%clk 0:00:09]} 27...
Re8 {[%clk 0:01:30.5]} 28. Bf6 {[%clk 0:00:09.2]} 28... g6 {[%clk 0:01:30]} 29.
Rg2 {[%clk 0:00:07]} 29... Be7 {[%clk 0:01:29]} 30. e6 {[%clk 0:00:04]} 30...
Bxf6 {[%clk 0:01:26.4]} 31. Rxf6 {[%clk 0:00:04.9]} 31... Rxe6 {[%clk 0:01:26]}
32. Rgxg6+ {[%clk 0:00:04.7]} 32... fxg6 {[%clk 0:01:26.1]} 33. Rxe6 {[%clk
0:00:05.5]} 33... Kf7 {[%clk 0:01:25.7]} 34. Re2 {[%clk 0:00:06]} 34... Rf5
{[%clk 0:01:25.5]} 35. Kd2 {[%clk 0:00:06.4]} 35... a5 {[%clk 0:01:24.1]} 36.
Kd3 {[%clk 0:00:07]} 36... b5 {[%clk 0:01:21.7]} 37. b3 {[%clk 0:00:06.7]} 37...
Rf3+ {[%clk 0:01:20.3]} 38. Kd4 {[%clk 0:00:06.4]} 38... g5 {[%clk 0:01:16.6]}
39. Kc5 {[%clk 0:00:06.4]} 39... Rf5+ {[%clk 0:01:15.8]} 40. Kc6 {[%clk
0:00:07]} 40... b4 {[%clk 0:01:06.2]} 41. c4 {[%clk 0:00:06.7]} 41... a4 {[%clk
0:01:04.1]} 42. Kxc7 {[%clk 0:00:05.9]} 42... axb3 {[%clk 0:01:04.1]} 43. axb3
{[%clk 0:00:06.3]} 43... Rf3 {[%clk 0:01:04.8]} 44. Rb2 {[%clk 0:00:04]} 44...
Ke6 {[%clk 0:01:02.6]} 45. Kb6 {[%clk 0:00:04.5]} 45... Rf8 {[%clk 0:00:53.9]}
46. c5 {[%clk 0:00:04.4]} 46... Kd5 {[%clk 0:00:53]} 47. Rd2+ {[%clk 0:00:04.5]}
47... Ke4 {[%clk 0:00:53.1]} 48. c6 {[%clk 0:00:05.2]} 48... g4 {[%clk
0:00:47.3]} 49. c7 {[%clk 0:00:05.1]} 49... Kf3 {[%clk 0:00:45.4]} 50. Kb7
{[%clk 0:00:05.5]} 50... Rf7 {[%clk 0:00:41.2]} 51. Kb8 {[%clk 0:00:05.7]} 51...
Rf8+ {[%clk 0:00:40]} 52. c8=Q {[%clk 0:00:06]} 52... Rxc8+ {[%clk 0:00:40.5]}
53. Kxc8 {[%clk 0:00:06.9]} 1-0

[Event "Late-Titled-Tuesday-Blitz-May-14-2024"]
[Site "Chess.com"]
[Date "2024.05.14"]
[Round "9"]
[White "KebabJangles"]
[Black "N_Mullodzhanov"]
[Result "1-0"]
[WhiteElo "2380"]
[BlackElo "2555"]
[TimeControl "180+1"]
[EndTime "15:43:38 PDT"]
[Termination "KebabJangles won by checkmate"]

1. d4 {[%clk 0:03:00.2]} 1... Nf6 {[%clk 0:02:59.9]} 2. c4 {[%clk 0:02:59]} 2...
g6 {[%clk 0:03:00.1]} 3. g3 {[%clk 0:02:57.8]} 3... Bg7 {[%clk 0:03:00.4]} 4.
Bg2 {[%clk 0:02:55.2]} 4... O-O {[%clk 0:03:00.7]} 5. Nc3 {[%clk 0:02:55.1]}
5... d6 {[%clk 0:03:01.1]} 6. Nf3 {[%clk 0:02:54.9]} 6... Nc6 {[%clk 0:02:57.7]}
7. O-O {[%clk 0:02:55.1]} 7... e5 {[%clk 0:02:58]} 8. dxe5 {[%clk 0:02:53.7]}
8... dxe5 {[%clk 0:02:57.4]} 9. Bg5 {[%clk 0:02:54]} 9... Be6 {[%clk 0:02:49.9]}
10. Qa4 {[%clk 0:02:46.7]} 10... h6 {[%clk 0:02:46.1]} 11. Rad1 {[%clk
0:02:44.6]} 11... Bd7 {[%clk 0:02:36.9]} 12. Bxf6 {[%clk 0:02:39.1]} 12... Bxf6
{[%clk 0:02:36.4]} 13. Qb3 {[%clk 0:02:32.5]} 13... Bg7 {[%clk 0:02:26.3]} 14.
Ne4 {[%clk 0:02:21.7]} 14... Nd4 {[%clk 0:02:21.4]} 15. Nxd4 {[%clk 0:02:20.4]}
15... exd4 {[%clk 0:02:22.3]} 16. Nc5 {[%clk 0:02:20.3]} 16... Bg4 {[%clk
0:01:58]} 17. Rfe1 {[%clk 0:01:52.5]} 17... Qe7 {[%clk 0:01:46.2]} 18. Nd3
{[%clk 0:01:42.3]} 18... c6 {[%clk 0:01:34.9]} 19. h3 {[%clk 0:01:41.6]} 19...
Be6 {[%clk 0:01:29]} 20. Qc2 {[%clk 0:01:38]} 20... Rad8 {[%clk 0:01:20.1]} 21.
b3 {[%clk 0:01:36.1]} 21... c5 {[%clk 0:01:05.5]} 22. Nf4 {[%clk 0:01:30.1]}
22... Bf5 {[%clk 0:01:04.4]} 23. Qd2 {[%clk 0:01:29.5]} 23... Qd7 {[%clk
0:00:59.4]} 24. g4 {[%clk 0:01:24.7]} 24... Be6 {[%clk 0:00:52.4]} 25. Bd5
{[%clk 0:01:22.4]} 25... Be5 {[%clk 0:00:48.9]} 26. Bxe6 {[%clk 0:01:13.5]}
26... Bxf4 {[%clk 0:00:11.8]} 27. Bxd7 {[%clk 0:01:11.8]} 27... Bxd2 {[%clk
0:00:11.6]} 28. Rxd2 {[%clk 0:01:10]} 28... Rxd7 {[%clk 0:00:12.1]} 29. e3
{[%clk 0:01:06.2]} 29... d3 {[%clk 0:00:12.4]} 30. Red1 {[%clk 0:01:06.3]} 30...
Rfd8 {[%clk 0:00:12.7]} 31. f3 {[%clk 0:01:06.1]} 31... f5 {[%clk 0:00:11.8]}
32. Kf2 {[%clk 0:01:06]} 32... Kf7 {[%clk 0:00:11.1]} 33. e4 {[%clk 0:01:06.2]}
33... f4 {[%clk 0:00:11.5]} 34. Re1 {[%clk 0:01:04]} 34... g5 {[%clk 0:00:09.2]}
35. Rh1 {[%clk 0:01:03.2]} 35... Kf6 {[%clk 0:00:08.7]} 36. h4 {[%clk
0:01:03.5]} 36... Ke5 {[%clk 0:00:07.9]} 37. hxg5 {[%clk 0:01:03.1]} 37... hxg5
{[%clk 0:00:08.8]} 38. Rh5 {[%clk 0:01:03.3]} 38... Kd4 {[%clk 0:00:09.1]} 39.
Rxg5 {[%clk 0:01:02.9]} 39... Kc3 {[%clk 0:00:09.3]} 40. Ke1 {[%clk 0:01:02.9]}
40... Rh8 {[%clk 0:00:09]} 41. Rh5 {[%clk 0:00:59.1]} 41... Rdh7 {[%clk
0:00:08.1]} 42. Rdh2 {[%clk 0:00:58.2]} 42... Rxh5 {[%clk 0:00:08.2]} 43. gxh5
{[%clk 0:00:58.6]} 43... Rg8 {[%clk 0:00:06.9]} 44. h6 {[%clk 0:00:58.4]} 44...
Rg1+ {[%clk 0:00:06.1]} 45. Kf2 {[%clk 0:00:58]} 45... Ra1 {[%clk 0:00:01.6]}
46. h7 {[%clk 0:00:58.1]} 46... Rxa2+ {[%clk 0:00:02.2]} 47. Kg1 {[%clk
0:00:58.2]} 47... Rxh2 {[%clk 0:00:02.4]} 48. Kxh2 {[%clk 0:00:58.3]} 48... d2
{[%clk 0:00:03]} 49. h8=Q+ {[%clk 0:00:58.4]} 49... Kc2 {[%clk 0:00:03.6]} 50.
Qd8 {[%clk 0:00:58.3]} 50... d1=Q {[%clk 0:00:03.6]} 51. Qxd1+ {[%clk
0:00:58.3]} 51... Kxd1 {[%clk 0:00:04.5]} 52. e5 {[%clk 0:00:59]} 52... Kc2
{[%clk 0:00:03.2]} 53. e6 {[%clk 0:00:59.9]} 53... Kxb3 {[%clk 0:00:03.7]} 54.
e7 {[%clk 0:01:00.8]} 54... a5 {[%clk 0:00:04.3]} 55. e8=Q {[%clk 0:01:01.7]}
55... a4 {[%clk 0:00:04.6]} 56. Qb5+ {[%clk 0:01:01.8]} 56... Kc3 {[%clk
0:00:03.5]} 57. Qxc5 {[%clk 0:01:02]} 57... b6 {[%clk 0:00:02.3]} 58. Qxb6
{[%clk 0:01:01.4]} 58... Kxc4 {[%clk 0:00:02.3]} 59. Qf6 {[%clk 0:01:01.5]}
59... Kb3 {[%clk 0:00:02.6]} 60. Qxf4 {[%clk 0:01:01.8]} 60... a3 {[%clk
0:00:03.1]} 61. Qe5 {[%clk 0:01:02.4]} 61... Kc2 {[%clk 0:00:02.1]} 62. f4
{[%clk 0:01:02.8]} 62... a2 {[%clk 0:00:02.8]} 63. f5 {[%clk 0:01:02.8]} 63...
Kd3 {[%clk 0:00:01.6]} 64. f6 {[%clk 0:01:02.5]} 64... Kc2 {[%clk 0:00:02.1]}
65. f7 {[%clk 0:01:03]} 65... Kb1 {[%clk 0:00:02.7]} 66. f8=Q {[%clk 0:01:00.9]}
66... a1=N {[%clk 0:00:03.5]} 67. Qb4+ {[%clk 0:00:59.9]} 67... Kc2 {[%clk
0:00:01.6]} 68. Qbb2+ {[%clk 0:00:59.2]} 68... Kd1 {[%clk 0:00:01.1]} 69. Qxa1+
{[%clk 0:00:57.5]} 69... Kc2 {[%clk 0:00:00.5]} 70. Qec3# {[%clk 0:00:57.2]} 1-0